fUST/lending_fUST_20251213
["ID","MTS","AMOUNT","RATE_DAILY","PERIOD"]
[398408845,1765617091899,-502.30472405,0.00028767,3]
[398408846,1765617091908,-546.02,0.00028767,3]
[398408847,1765617091917,-1532.63,0.00028767,3]
[398408848,1765617091927,-2352.93,0.00028767,3]
[398408849,1765617091936,-500.0,0.00028767,3]
[398408850,1765617091946,-500.0,0.00028767,3]
[398408851,1765617091955,-870.12,0.00028767,2]
[398408852,1765617091970,-500.0,0.00028767,3]
[398408853,1765617091988,-576.15,0.00028767,3]
[398408854,1765617092002,-500.0,0.00028767,3]
[398408855,1765617092016,-500.0,0.00028767,3]
[398408856,1765617092030,-500.0,0.00028767,3]
[398408857,1765617092047,-500.0,0.00028767,3]
[398408858,1765617092063,-500.86620905,0.00028767,3]
[398408859,1765617092079,-2186.76,0.00028767,3]
[398408860,1765617092095,-500.0,0.00028767,3]
[398408861,1765617092109,-1646.45,0.00028767,3]
[398408862,1765617092125,-500.0,0.00028767,3]
[398408863,1765617092139,-2156.34,0.00028767,3]
[398408864,1765617092151,-1000.0,0.00028767,2]
[398408865,1765617092165,-500.0,0.00028767,3]
[398408866,1765617092180,-500.0,0.00028767,3]
[398408867,1765617092195,-500.0,0.00028767,3]
[398408868,1765617092213,-500.0,0.00028767,3]
[398408869,1765617092227,-2095.52,0.00028767,3]
[398408870,1765617092238,-501.77791899,0.00028767,3]
[398408871,1765617092251,-2472.36,0.00028767,3]
[398408872,1765617092268,-504.3,0.00028767,3]
[398408873,1765617092280,-1669.5,0.00028767,3]
[398408874,1765617092292,-1173.99,0.00028767,3]
[398408875,1765617092306,-501.61275245,0.00028767,3]
[398408876,1765617092318,-500.0,0.00028767,3]
[398408877,1765617092332,-501.12497475,0.00028767,3]
[398408878,1765617092346,-8313.59,0.00028767,3]
[398408879,1765617092359,-2189.26,0.00028767,3]
[398408880,1765617092373,-500.0,0.00028767,3]
[398408881,1765617092387,-756.99,0.00028767,3]
[398408882,1765617092400,-500.0,0.00028767,3]
[398408883,1765617092412,-341.33,0.00028767,3]
[398408884,1765617092424,-500.0,0.00028767,3]
[398408885,1765617092440,-2196.27,0.00028767,3]
[398408886,1765617092453,-500.0,0.00028767,3]
[398408887,1765617092466,-2077.28,0.00028767,3]
[398408888,1765617092480,-500.0,0.00028767,3]
[398408889,1765617092492,-500.0,0.00028767,3]
[398408890,1765617092506,-2178.91,0.00028767,3]
[398408891,1765617092518,-501.86977902,0.00028767,3]
[398408892,1765617092531,-1039.54,0.00028767,3]
[398408893,1765617092544,-1677.78,0.00028767,3]
[398408894,1765617092558,-434.90364762,0.000288,2]
[398408895,1765617092572,-500.0,0.00028814,3]
[398408896,1765617092584,-500.0,0.00028814,3]
[398408897,1765617092597,-500.0,0.00028814,3]
[398408898,1765617092610,-500.0,0.00028814,3]
[398408899,1765617092623,-500.0,0.00028814,3]
[398408900,1765617092636,-500.0,0.00028814,3]
[398408901,1765617092648,-500.0,0.00028814,3]
[398408902,1765617092661,-909.28,0.0002882,3]
[398408903,1765617092674,-804.94,0.00029041,3]
[398408904,1765617092687,-500.0,0.00029041,3]
[398408905,1765617092699,-500.0,0.00029041,3]
[398408906,1765617092711,-1145.8,0.00029041,3]
[398408907,1765617092722,-897.33,0.00029041,3]
[398408908,1765617092735,-500.0,0.00029041,3]
[398408909,1765617092747,-500.0,0.00029041,3]
[398408910,1765617092759,-500.0,0.00029041,3]
[398408911,1765617092771,-1068.39,0.00029041,3]
[398408912,1765617092784,-500.73298016,0.00029041,3]
[398408913,1765617092797,-1993.075405,0.00029041,3]
[398408914,1765617092809,-500.0,0.00029041,3]
[398408915,1765617092821,-500.0,0.00029041,3]
[398408916,1765617092833,-500.0,0.00029041,3]
[398408917,1765617092845,-645.92,0.00029041,3]
[398408918,1765617092857,-553.99,0.00029041,3]
[398408919,1765617092869,-500.0,0.00029041,3]
[398408920,1765617092883,-500.0,0.00029041,3]
[398408921,1765617092894,-500.0,0.00029041,3]
[398408922,1765617092906,-500.0,0.00029041,3]
[398408923,1765617092918,-500.0,0.00029041,3]
[398408924,1765617092930,-285.1599264,0.00029041,3]
[398408925,1765617092942,-500.0,0.00029041,3]
[398408926,1765617092955,-660.68,0.00029041,3]
[398408927,1765617092967,-856.0,0.00029041,3]
[398408928,1765617092980,-500.0,0.00029041,3]
[398408929,1765617092996,-500.0,0.00029041,3]
[398408930,1765617093013,-790.78,0.00029041,3]
[398408931,1765617093025,-500.0,0.00029041,3]
[398408932,1765617093037,-512.89,0.00029041,3]
[398408933,1765617093050,-500.0,0.00029041,3]
[398408934,1765617093062,-500.0,0.00029041,3]
[398408935,1765617093074,-500.0,0.00029041,3]
[398408936,1765617093086,-500.0,0.00029041,3]
[398408937,1765617093098,-500.0,0.00029041,3]
[398408938,1765617093109,-504.02428794,0.00029041,3]
[398408939,1765617093122,-639.5,0.00029041,3]
[398408940,1765617093133,-500.0,0.00029041,3]
[398408941,1765617093146,-500.0,0.00029041,3]
[398408942,1765617093158,-3077.68,0.00029041,2]
[398408943,1765617093170,-500.0,0.00029041,3]
[398408944,1765617093182,-593.39,0.00029041,3]
[398408945,1765617093194,-2235.67,0.00029041,3]
[398408946,1765617093207,-1390.25,0.00029041,3]
[398408947,1765617093219,-500.0,0.00029041,3]
[398408948,1765617093230,-785.9,0.00029041,3]
[398408949,1765617093242,-500.0,0.00029041,3]
[398408950,1765617093255,-500.0,0.00029041,3]
[398408951,1765617093267,-831.81,0.00029041,3]
[398408952,1765617093279,-1408.37,0.00029041,3]
[398408953,1765617093290,-500.82522806,0.00029041,3]
[398408954,1765617093302,-1689.79,0.00029041,3]
[398408955,1765617093315,-500.0,0.00029041,3]
[398408956,1765617093328,-513.08398531,0.00029041,3]
[398408957,1765617093339,-500.0,0.00029041,3]
[398408958,1765617093352,-500.0,0.00029041,3]
[398408959,1765617093364,-2326.68,0.00029041,3]
[398408960,1765617093376,-824.67,0.00029041,3]
[398408961,1765617093388,-1057.47,0.00029041,3]
[398408962,1765617093399,-500.0,0.00029041,3]
[398408963,1765617093411,-578.94313275,0.00029041,3]
[398408964,1765617093422,-500.0,0.00029041,3]
[398408965,1765617093434,-500.0,0.00029041,3]
[398408966,1765617093447,-500.0,0.00029041,3]
[398408967,1765617093459,-500.0,0.00029041,3]
[398408968,1765617093471,-500.52656032,0.00029041,3]
[398408969,1765617093483,-502.57197531,0.00029041,3]
[398408970,1765617093495,-1473.21,0.00029041,3]
[398408971,1765617093507,-501.31511226,0.00029041,3]
[398408972,1765617093519,-500.0,0.00029041,3]
[398408973,1765617093531,-501.14837559,0.00029041,3]
[398408974,1765617093542,-500.0,0.00029041,3]
[398408975,1765617093554,-500.0,0.00029041,3]
[398408976,1765617093565,-500.0,0.00029041,3]
[398408977,1765617093577,-500.86997633,0.00029041,3]
[398408978,1765617093589,-500.85840481,0.00029041,3]
[398408979,1765617093600,-500.0,0.00029041,3]
[398408980,1765617093615,-500.0,0.00029041,3]
[398408981,1765617093626,-500.0,0.00029041,3]
[398408982,1765617093638,-846.23,0.00029041,3]
[398408983,1765617093650,-500.0,0.00029041,3]
[398408984,1765617093662,-500.0,0.00029041,3]
[398408985,1765617093673,-257.2670829,0.00029041,3]
[398408986,1765617093685,-500.0,0.00029041,3]
[398408987,1765617093698,-583.61,0.00029041,3]
[398408988,1765617093710,-626.59,0.00029041,3]
[398408989,1765617093721,-500.0,0.00029041,3]
[398408990,1765617093733,-904.94,0.00029041,3]
[398408991,1765617093745,-500.0,0.00029041,3]
[398408992,1765617093757,-500.0,0.00029041,3]
[398408993,1765617093769,-500.0,0.00029041,3]
[398408994,1765617093780,-500.0,0.00029041,3]
[398408995,1765617093791,-500.0,0.00029041,3]
[398408996,1765617093803,-500.0,0.00029041,3]
[398408997,1765617093814,-798.1,0.00029041,3]
[398408998,1765617093826,-500.0,0.00029041,3]
[398408999,1765617093838,-1087.52,0.00029041,3]
[398409000,1765617093851,-500.0,0.00029041,3]
[398409001,1765617093863,-500.0,0.00029041,3]
[398409002,1765617093875,-2523.4,0.00029041,3]
[398409003,1765617093887,-1478.52,0.00029041,3]
[398409004,1765617093898,-726.62,0.00029041,3]
[398409005,1765617093911,-500.0,0.00029041,3]
[398409006,1765617094200,-789.39,0.00029041,3]
[398409007,1765617094209,-500.0,0.00029041,3]
[398409008,1765617094218,-500.0,0.00029041,3]
[398409009,1765617094228,-577.02,0.00029041,3]
[398409010,1765617094239,-857.63,0.00029041,3]
[398409011,1765617094249,-1260.15,0.00029041,3]
[398409012,1765617094259,-707.76,0.00029041,3]
[398409013,1765617094269,-500.0,0.00029041,3]
[398409014,1765617094277,-500.0,0.00029041,3]
[398409015,1765617094287,-500.0,0.00029041,3]
[398409016,1765617094296,-500.0,0.00029041,3]
[398409017,1765617094305,-500.0,0.00029041,3]
[398409018,1765617094314,-1622.32,0.00029041,3]
[398409019,1765617094324,-500.0,0.00029041,3]
[398409020,1765617094334,-500.0,0.00029041,3]
[398409021,1765617094343,-500.0,0.00029041,3]
[398409022,1765617094352,-500.0,0.00029041,3]
[398409023,1765617094362,-806.44,0.00029041,3]
[398409024,1765617094372,-500.0,0.00029041,3]
[398409025,1765617094381,-1000.0,0.00029041,2]
[398409026,1765617094391,-500.0,0.00029041,3]
[398409027,1765617094400,-1112.91,0.00029041,3]
[398409028,1765617094417,-500.0,0.00029041,3]
[398409029,1765617094427,-500.0,0.00029041,2]
[398409030,1765617094437,-896.63,0.00029041,3]
[398409031,1765617094447,-500.0,0.00029041,3]
[398409032,1765617094460,-500.0,0.00029041,3]
[398409033,1765617094470,-500.0,0.00029041,3]
[398409034,1765617094479,-500.0,0.00029041,3]
[398409035,1765617094489,-624.5,0.00029041,3]
[398409036,1765617094499,-500.0,0.00029041,3]
[398409037,1765617094508,-500.0,0.00029041,3]
[398409038,1765617094517,-500.0,0.00029041,3]
[398409039,1765617094526,-654.65,0.00029041,3]
[398409040,1765617094535,-500.0,0.00029041,3]
[398409041,1765617094544,-500.0,0.00029041,3]
[398409042,1765617094554,-501.76394944,0.00029041,3]
[398409043,1765617094563,-500.0,0.00029041,3]
[398409044,1765617094573,-500.0,0.00029041,3]
[398409045,1765617094583,-500.0,0.00029041,3]
[398409046,1765617094592,-583.25,0.00029041,3]
[398409047,1765617094601,-899.34,0.00029041,3]
[398409048,1765617094610,-1121.98,0.00029041,3]
[398409049,1765617094619,-228.94882083,0.00029041,3]
[398409050,1765617094628,-500.0,0.00029041,3]
[398409051,1765617094637,-500.0,0.00029041,3]
[398409052,1765617094647,-595.67,0.00029041,3]
[398409053,1765617094656,-500.0,0.00029041,3]
[398409054,1765617094666,-547.85,0.00029041,3]
[398409055,1765617094676,-500.0,0.00029041,3]
[398409056,1765617094685,-892.15,0.00029041,3]
[398409057,1765617094695,-500.0,0.00029041,3]
[398409058,1765617094704,-500.0,0.00029041,3]
[398409059,1765617094714,-500.0,0.00029041,3]
[398409060,1765617094723,-500.0,0.00029041,3]
[398409061,1765617094733,-500.0,0.00029041,3]
[398409062,1765617094742,-500.0,0.00029041,3]
[398409063,1765617094752,-500.0,0.00029041,3]
[398409064,1765617094762,-500.0,0.00029041,3]
[398409065,1765617094773,-2540.36,0.00029041,3]
[398409066,1765617094783,-821.39,0.00029041,3]
[398409067,1765617094793,-500.0,0.00029041,3]
[398409068,1765617094803,-785.87,0.00029041,3]
[398409069,1765617094812,-500.0,0.00029041,3]
[398409070,1765617094823,-500.0,0.00029041,3]
[398409071,1765617094833,-500.0,0.00029041,2]
[398409072,1765617094842,-502.06592754,0.00029041,3]
[398409073,1765617094852,-500.0,0.00029041,3]
[398409074,1765617094861,-500.0,0.00029041,3]
[398409075,1765617094871,-1790.33,0.00029041,3]
[398409076,1765617094880,-500.0,0.00029041,3]
[398409077,1765617094891,-500.0,0.00029041,3]
[398409078,1765617094901,-500.0,0.00029041,3]
[398409079,1765617094911,-1160.64,0.00029041,3]
[398409080,1765617094922,-500.0,0.00029041,3]
[398409081,1765617094931,-546.42,0.00029041,3]
[398409082,1765617094941,-2190.53,0.00029041,3]
[398409083,1765617094950,-1371.12,0.00029041,3]
[398409084,1765617094959,-1198.16,0.00029041,3]
[398409085,1765617094968,-500.0,0.00029041,3]
[398409086,1765617094977,-500.0,0.00029041,3]
[398409087,1765617094986,-500.0,0.00029041,3]
[398409088,1765617095001,-1547.34,0.00029041,3]
[398409089,1765617095010,-500.0,0.00029041,3]
[398409090,1765617095020,-502.56379898,0.00029041,3]
[398409091,1765617095031,-2798.21,0.00029041,3]
[398409092,1765617095043,-1546.27,0.00029041,3]
[398409093,1765617095053,-500.0,0.00029041,3]
[398409094,1765617095063,-500.0,0.00029041,3]
[398409095,1765617095074,-1706.88,0.00029041,3]
[398409096,1765617095084,-651.93,0.00029041,3]
[398409097,1765617095093,-500.0,0.00029041,3]
[398409098,1765617095103,-649.92,0.00029041,3]
[398409099,1765617095113,-500.0,0.00029041,3]
[398409100,1765617095123,-500.0,0.00029041,3]
[398409101,1765617095132,-1655.21,0.00029041,3]
[398409102,1765617095142,-500.0,0.00029041,3]
[398409103,1765617095151,-532.96,0.00029041,3]
[398409104,1765617095160,-500.0,0.00029041,3]
[398409105,1765617095169,-503.57,0.00029041,3]
[398409106,1765617095179,-652.81,0.00029041,3]
[398409107,1765617095187,-1422.67,0.00029041,3]
[398409108,1765617095196,-589.78,0.00029041,3]
[398409109,1765617095206,-237.8987772,0.00029041,3]
[398409110,1765617095215,-2352.96,0.00029041,3]
[398409111,1765617095224,-500.0,0.00029041,3]
[398409112,1765617095233,-2666.95,0.00029041,3]
[398409113,1765617095242,-500.0,0.00029041,3]
[398409114,1765617095251,-500.0,0.00029041,3]
[398409115,1765617095260,-500.0,0.00029041,3]
[398409116,1765617095270,-851.44,0.00029041,3]
[398409117,1765617095281,-500.0,0.00029041,3]
[398409118,1765617095291,-819.63,0.00029041,3]
[398409119,1765617095300,-500.0,0.00029041,3]
[398409120,1765617095310,-500.0,0.00029041,3]
[398409121,1765617095320,-2653.96,0.00029041,3]
[398409122,1765617095329,-927.33,0.00029041,3]
[398409123,1765617095338,-500.0,0.00029041,3]
[398409124,1765617095347,-500.0,0.00029041,3]
[398409125,1765617095357,-710.47,0.00029041,3]
[398409126,1765617095366,-500.0,0.00029041,3]
[398409127,1765617095375,-1285.14,0.00029041,3]
[398409128,1765617095384,-500.0,0.00029041,3]
[398409129,1765617095393,-500.0,0.00029041,3]
[398409130,1765617095402,-1412.4,0.00029041,3]
[398409131,1765617095411,-500.0,0.00029041,3]
[398409132,1765617095420,-624.02,0.00029041,3]
[398409133,1765617095430,-500.0,0.00029041,3]
[398409134,1765617095439,-533.34,0.00029041,3]
[398409135,1765617095448,-500.0,0.00029041,3]
[398409136,1765617095457,-848.09,0.00029041,3]
[398409137,1765617095467,-500.0,0.00029041,3]
[398409138,1765617095477,-1628.79,0.00029041,3]
[398409139,1765617095486,-500.0,0.00029041,3]
[398409140,1765617095495,-500.0,0.00029041,3]
[398409141,1765617095505,-500.0,0.00029041,3]
[398409142,1765617095514,-2704.91,0.00029041,3]
[398409143,1765617095524,-895.83,0.00029041,3]
[398409144,1765617095533,-500.0,0.00029041,3]
[398409145,1765617095542,-813.49,0.00029041,3]
[398409146,1765617095551,-875.5,0.00029041,3]
[398409147,1765617095561,-500.0,0.00029041,3]
[398409148,1765617095570,-500.0,0.00029041,3]
[398409149,1765617095579,-224.53818071,0.00029041,3]
[398409150,1765617095589,-987.93,0.00029041,3]
[398409151,1765617095598,-500.0,0.00029041,3]
[398409152,1765617095607,-778.78,0.00029041,3]
[398409153,1765617095616,-2765.6,0.00029041,3]
[398409154,1765617095625,-500.0,0.00029041,3]
[398409155,1765617095634,-500.0,0.00029041,3]
[398409156,1765617095644,-500.0,0.00029041,3]
[398409157,1765617095653,-1297.16,0.00029041,3]
[398409158,1765617095662,-500.0,0.00029041,3]
[398409159,1765617095671,-500.0,0.00029041,3]
[398409160,1765617095680,-500.0,0.00029041,3]
[398409161,1765617095691,-835.29,0.00029041,3]
[398409162,1765617095700,-1308.02,0.00029041,3]
[398409163,1765617095710,-1550.27,0.00029041,3]
[398409164,1765617095719,-500.0,0.00029041,3]
[398409165,1765617095728,-609.11,0.00029041,3]
[398409166,1765617095738,-1130.18,0.00029041,3]
[398409167,1765617095747,-500.0,0.00029041,3]
[398409168,1765617095756,-960.39,0.00029041,3]
[398409169,1765617095766,-1159.91,0.00029041,3]
[398409171,1765617095775,-500.0,0.00029041,3]
[398409172,1765617095784,-500.0,0.00029041,3]
[398409173,1765617095794,-807.67,0.00029041,3]
[398409174,1765617095804,-500.0,0.00029041,3]
[398409175,1765617095813,-576.35,0.00029041,3]
[398409176,1765617095823,-500.0,0.00029041,3]
[398409177,1765617095833,-500.0,0.00029041,3]
[398409178,1765617095842,-1599.25,0.00029041,3]
[398409179,1765617095852,-1139.23,0.00029041,3]
[398409180,1765617095862,-1513.97,0.00029041,3]
[398409181,1765617095871,-500.0,0.00029041,3]
[398409182,1765617095881,-500.0,0.00029041,3]
[398409183,1765617095891,-500.0,0.00029041,3]
[398409184,1765617095900,-842.23,0.00029041,3]
[398409185,1765617095911,-1111.13,0.00029041,3]
[398409186,1765617095921,-2647.09,0.00029041,3]
[398409187,1765617095931,-512.22,0.00029041,3]
[398409188,1765617095940,-500.0,0.00029041,3]
[398409189,1765617095949,-500.0,0.00029041,3]
[398409190,1765617095959,-500.0,0.00029041,3]
[398409191,1765617095968,-500.0,0.00029041,3]
[398409192,1765617095978,-617.3,0.00029041,3]
[398409193,1765617095989,-509.61041665,0.00029041,3]
[398409194,1765617096001,-1129.44,0.00029041,3]
[398409195,1765617096010,-504.63,0.00029041,3]
[398409196,1765617096021,-500.0,0.00029041,3]
[398409197,1765617096031,-500.0,0.00029041,3]
[398409198,1765617096040,-1042.65,0.00029041,3]
[398409199,1765617096050,-1774.87,0.00029041,3]
[398409200,1765617096059,-500.0,0.00029041,3]
[398409201,1765617096069,-500.0,0.00029041,3]
[398409202,1765617096080,-983.64,0.00029041,3]
[398409203,1765617096089,-1028.12,0.00029041,3]
[398409204,1765617096100,-500.0,0.00029041,3]
[398409205,1765617096110,-1971.47,0.00029041,3]
[398409206,1765617096121,-500.0,0.00029041,3]
[398409207,1765617096132,-500.0,0.00029041,3]
[398409208,1765617096142,-500.0,0.00029041,3]
[398409209,1765617096152,-500.0,0.00029041,3]
[398409210,1765617096161,-1206.52,0.00029041,3]
[398409211,1765617096170,-500.0,0.00029041,3]
[398409212,1765617096180,-500.0,0.00029041,3]
[398409213,1765617096190,-500.0,0.00029041,3]
[398409214,1765617096199,-2873.75,0.00029041,3]
[398409215,1765617096208,-414.5561198,0.00029041,3]
[398409216,1765617096220,-500.0,0.00029041,3]
[398409217,1765617096229,-500.0,0.00029041,3]
[398409218,1765617096239,-2079.15,0.00029041,3]
[398409219,1765617096248,-156.44927492,0.00029041,3]
[398409220,1765617096257,-500.0,0.00029041,3]
[398409221,1765617096266,-1274.09,0.00029041,3]
[398409222,1765617096276,-955.7,0.00029041,3]
[398409223,1765617096285,-500.0,0.00029041,3]
[398409224,1765617096294,-1232.72,0.00029041,3]
[398409225,1765617096303,-500.0,0.00029041,3]
[398409226,1765617096312,-500.0,0.00029041,3]
[398409227,1765617096320,-500.0,0.00029041,3]
[398409228,1765617096329,-1057.28,0.00029041,3]
[398409229,1765617096339,-500.0,0.00029041,3]
[398409230,1765617096348,-898.31,0.00029041,3]
[398409231,1765617096357,-500.0,0.00029041,3]
[398409232,1765617096366,-772.85,0.00029041,3]
[398409233,1765617096375,-500.0,0.00029041,3]
[398409234,1765617096384,-819.41,0.00029041,3]
[398409235,1765617096393,-788.38,0.00029041,3]
[398409236,1765617096402,-500.0,0.00029041,3]
[398409237,1765617096410,-748.25,0.00029041,3]
[398409238,1765617096419,-764.33,0.00029041,3]
[398409239,1765617096428,-836.29,0.00029041,3]
[398409240,1765617096438,-500.0,0.00029041,3]
[398409241,1765617096447,-500.0,0.00029041,3]
[398409242,1765617096456,-500.0,0.00029041,3]
[398409243,1765617096465,-500.0,0.00029041,3]
[398409244,1765617096474,-500.0,0.00029041,3]
[398409245,1765617096484,-500.0,0.00029041,3]
[398409246,1765617096495,-1629.1,0.00029041,3]
[398409247,1765617096504,-1136.76,0.00029041,3]
[398409248,1765617096513,-500.0,0.00029041,3]
[398409249,1765617096523,-500.0,0.00029041,3]
[398409250,1765617096534,-501.79153696,0.00029041,3]
[398409251,1765617096544,-500.0,0.00029041,3]
[398409252,1765617096553,-500.0,0.00029041,3]
[398409253,1765617096563,-500.0,0.00029041,3]
[398409254,1765617096572,-2503.99,0.00029041,3]
[398409255,1765617096582,-500.0,0.00029041,3]
[398409256,1765617096592,-234.29748291,0.00029041,3]
[398409257,1765617096604,-1038.24,0.00029041,3]
[398409258,1765617096614,-842.87,0.00029041,3]
[398409259,1765617096625,-1132.01,0.00029041,3]
[398409260,1765617096636,-723.84,0.00029041,3]
[398409261,1765617096647,-500.0,0.00029041,3]
[398409262,1765617096657,-1106.65,0.00029041,3]
[398409263,1765617096667,-512.36,0.00029041,3]
[398409264,1765617096677,-1634.87,0.00029041,3]
[398409265,1765617096687,-802.8,0.00029041,3]
[398409266,1765617096697,-1706.64,0.00029041,3]
[398409267,1765617096706,-1633.25,0.00029041,3]
[398409268,1765617096716,-687.9,0.00029041,3]
[398409269,1765617096725,-1178.32,0.00029041,3]
[398409270,1765617096735,-978.5,0.00029041,3]
[398409271,1765617096744,-500.0,0.00029041,3]
[398409272,1765617096754,-500.0,0.00029041,3]
[398409273,1765617096763,-500.0,0.00029041,3]
[398409274,1765617096773,-500.0,0.00029041,3]
[398409275,1765617096782,-2394.04,0.00029041,3]
[398409276,1765617096791,-2141.51,0.00029041,3]
[398409277,1765617096800,-958.87,0.00029041,3]
[398409278,1765617096809,-2199.51,0.00029041,3]
[398409279,1765617096818,-1204.0,0.00029041,3]
[398409280,1765617096827,-1211.46,0.00029041,3]
[398409281,1765617096836,-500.0,0.00029041,3]
[398409282,1765617096845,-500.0,0.00029041,3]
[398409283,1765617096854,-788.62,0.00029041,3]
[398409284,1765617096863,-541.28,0.00029041,3]
[398409285,1765617096873,-1484.03,0.00029041,3]
[398409286,1765617096883,-180.74506559,0.00029041,3]
[398409287,1765617096892,-1576.26,0.00029041,3]
[398409288,1765617096901,-538.43,0.00029041,3]
[398409289,1765617096910,-500.0,0.00029041,3]
[398409290,1765617096920,-349.44176359,0.00029041,3]
[398409291,1765617096930,-500.0,0.00029041,3]
[398409292,1765617096939,-500.0,0.00029041,3]
[398409293,1765617096948,-1753.96,0.00029041,3]
[398409294,1765617096957,-1893.62,0.00029041,3]
[398409295,1765617096965,-1559.0,0.00029041,3]
[398409296,1765617096974,-1715.03,0.00029041,3]
[398409297,1765617096982,-1728.44,0.00029041,3]
[398409298,1765617096994,-500.0,0.00029041,3]
[398409299,1765617097003,-500.0,0.00029041,3]
[398409300,1765617097012,-500.0,0.00029041,3]
[398409301,1765617097021,-500.0,0.00029041,3]
[398409302,1765617097029,-500.0,0.00029041,3]
[398409303,1765617097039,-500.0,0.00029041,3]
[398409304,1765617097048,-500.0,0.00029041,3]
[398409305,1765617097057,-2558.19,0.00029041,3]
[398409306,1765617097066,-500.0,0.00029041,3]
[398409307,1765617097076,-500.0,0.00029041,3]
[398409308,1765617097085,-2327.61,0.00029041,3]
[398409309,1765617097093,-656.92,0.00029041,3]
[398409310,1765617097102,-500.0,0.00029041,3]
[398409311,1765617097112,-1829.66,0.00029041,3]
[398409312,1765617097121,-500.0,0.00029041,3]
[398409313,1765617097130,-500.0,0.00029041,3]
[398409314,1765617097139,-500.0,0.00029041,3]
[398409315,1765617097149,-754.81,0.00029041,3]
[398409316,1765617097158,-500.0,0.00029041,3]
[398409317,1765617097167,-500.0,0.00029041,3]
[398409318,1765617097176,-500.0,0.00029041,3]
[398409319,1765617097185,-1088.51,0.00029041,3]
[398409320,1765617097194,-500.0,0.00029041,3]
[398409321,1765617097203,-500.0,0.00029041,3]
[398409322,1765617097211,-2152.22,0.00029041,3]
[398409323,1765617097220,-1575.55,0.00029041,3]
[398409324,1765617097229,-1036.88,0.00029041,3]
[398409325,1765617097237,-500.0,0.00029041,3]
[398409326,1765617097246,-1210.75,0.00029041,3]
[398409327,1765617097255,-500.0,0.00029041,3]
[398409328,1765617097264,-500.0,0.00029041,3]
[398409329,1765617097273,-500.0,0.00029041,3]
[398409330,1765617097282,-500.0,0.00029041,3]
[398409331,1765617097291,-500.0,0.00029041,3]
[398409332,1765617097300,-500.0,0.00029041,3]
[398409333,1765617097310,-500.0,0.00029041,3]
[398409334,1765617097318,-500.0,0.00029041,3]
[398409335,1765617097327,-1371.34,0.00029041,3]
[398409336,1765617097338,-500.0,0.00029041,3]
[398409337,1765617097348,-1544.08,0.00029041,3]
[398409338,1765617097514,-500.0,0.00029041,3]
[398409339,1765617097530,-500.0,0.00029041,3]
[398409340,1765617097540,-500.0,0.00029041,3]
[398409341,1765617097549,-964.54,0.00029041,3]
[398409342,1765617097558,-500.0,0.00029041,3]
[398409343,1765617097567,-2211.52,0.00029041,3]
[398409344,1765617097575,-715.72,0.00029041,3]
[398409345,1765617097585,-500.0,0.00029041,3]